bitfinex/quotes_ETHUSD_20240819
["timestamp","ask_amount","ask_price","bid_price","bid_amount"]
[1724069058463,3.85953,2591.0,2590.2,2.3977]
[1724069058661,0.12900037,2590.9,2590.2,2.3977]
[1724069058911,3.98877037,2590.9,2590.2,2.3977]
[1724069059094,5.03867029,2590.9,2590.2,2.3977]
[1724069059305,3.85988,2590.8,2590.2,2.3977]
[1724069059529,0.12916719,2590.7,2590.2,2.3977]
[1724069060196,3.85983,2590.8,2590.2,2.3977]
[1724069060396,0.12916144,2590.6,2590.2,2.3977]
[1724069060582,3.85959,2591.0,2590.2,2.3977]
[1724069060779,0.12909241,2590.5,2590.2,2.3977]
[1724069060978,3.8593,2591.2,2590.2,2.63747]
[1724069060979,0.385931,2591.1,2590.2,2.63747]
[1724069061283,0.385931,2591.1,2590.3,3.0]
[1724069061284,0.12908091,2591.0,2590.3,3.0]
[1724069061633,0.12908091,2591.0,2590.3,3.563747]
[1724069061796,0.12908091,2591.0,2590.3,3.0]
[1724069062003,3.85982,2590.8,2590.2,2.3977]
[1724069062327,3.86026,2590.5,2589.9,5.463]
[1724069062534,3.86042,2590.4,2589.9,2.463]
[1724069062740,3.86072,2590.2,2589.6,2.463]
[1724069063033,3.86072,2590.2,2589.1,2.3656]
[1724069063326,3.86102,2590.0,2589.1,2.3656]
[1724069063528,7.72211,2590.0,2589.1,2.3656]
[1724069063690,3.86116,2589.9,2589.1,2.3656]
[1724069063887,3.99047816,2589.8,2589.1,2.3656]
[1724069064087,0.12909816,2589.8,2589.1,2.3656]
[1724069064286,6.40539816,2589.8,2589.1,2.3656]
[1724069064495,7.43205398,2589.8,2589.1,2.3656]
[1724069065088,1.15575398,2589.8,2589.1,2.3656]
[1724069065283,0.12909816,2589.8,2589.1,2.3656]
[1724069065593,2.4722,2590.5,2589.1,2.3656]
[1724069065594,3.86093,2590.1,2589.1,2.3656]
[1724069065990,0.12852844,2590.0,2589.1,2.3656]
[1724069066188,0.12852844,2590.0,2589.2,0.23656]
[1724069066426,0.12852844,2590.0,2589.2,3.23656]
[1724069066627,3.86066,2590.3,2589.2,3.23656]
[1724069066795,0.12412326,2589.9,2589.3,3.0344]
[1724069066995,7.72182,2590.1,2589.4,3.0]
[1724069067209,0.12412326,2589.8,2589.4,3.0]
[1724069067500,6.3325,2590.5,2589.4,3.56002965]
[1724069067501,0.12417508,2589.7,2589.4,3.56002965]
[1724069067680,7.72157,2590.2,2589.4,3.56002965]
[1724069067882,0.12418659,2590.1,2589.4,3.56002965]
[1724069069130,3.98504659,2590.1,2589.4,3.56002965]
[1724069069631,0.12418659,2590.1,2589.4,3.56002965]
[1724069070082,3.86102,2590.0,2589.4,3.56002965]
[1724069070286,0.12424992,2589.9,2589.4,3.0]
[1724069070527,3.86101,2590.0,2589.3,5.4844]
[1724069070830,0.12424416,2589.8,2589.3,5.4844]
[1724069070987,3.86101,2590.0,2589.3,5.4844]
[1724069071189,0.12424416,2589.7,2589.3,5.4844]
[1724069071495,3.86132,2589.8,2589.3,5.4844]
[1724069071496,0.12424416,2589.6,2589.3,5.4844]
[1724069071706,3.86132,2589.8,2589.3,5.4844]
[1724069071999,0.12424416,2589.7,2589.3,2.4844]
[1724069072447,3.86117,2589.9,2589.3,2.4844]
[1724069072933,0.12360691,2589.8,2589.3,2.4844]
[1724069075549,3.86102,2590.0,2589.3,2.4844]
[1724069075840,0.12362994,2589.7,2589.4,35.0]
[1724069076018,3.86102,2590.0,2589.5,3.0]
[1724069076219,0.12362994,2589.6,2589.5,3.0]
[1724069076439,3.86077,2590.2,2589.3,5.4844]
[1724069076611,0.12362994,2589.6,2589.4,0.65094]
[1724069076820,3.8613,2589.8,2588.8,9.6479]
[1724069077150,3.98518298,2589.7,2588.8,9.6479]
[1724069077438,3.86197,2589.4,2588.8,9.6479]
[1724069077590,3.86205,2589.3,2588.8,9.6479]
[1724069077793,3.98565115,2589.3,2588.8,2.4078]
[1724069078033,7.84784115,2589.3,2588.8,2.4078]
[1724069078356,0.90838527,2589.3,2588.5,2.4747]
[1724069078495,3.86283,2588.8,2588.3,7.2401]
[1724069078839,3.98647564,2588.7,2588.2,2.4747]
[1724069078991,3.98647564,2588.7,2588.2,2.72217]
[1724069079395,0.12344564,2588.7,2588.2,2.72217]
[1724069079838,3.86274,2588.9,2588.2,2.72217]
[1724069080059,0.12324401,2588.6,2588.3,3.0]
[1724069080343,0.12324401,2588.5,2588.3,3.0]
[1724069080699,3.86244,2589.1,2588.3,3.0]
[1724069080700,3.86265,2588.9,2588.3,3.0]
[1724069080927,0.12309995,2588.8,2588.3,3.0]
[1724069082721,3.86336,2588.5,2588.0,2.4995]
[1724069082971,0.12311148,2588.4,2588.0,5.4995]
[1724069083246,0.12311148,2588.4,2588.0,2.4995]
[1724069083752,0.12311148,2588.3,2588.0,2.4995]
[1724069084441,6.13592,2588.7,2588.0,2.4995]
[1724069084442,3.86317,2588.6,2588.0,2.4995]
[1724069084642,3.86325,2588.5,2588.0,2.4995]
[1724069084816,0.613592,2588.6,2588.0,2.4995]
[1724069085011,4.476702,2588.6,2588.0,2.4995]
[1724069085218,3.86302,2588.7,2588.0,2.4995]
[1724069085425,7.72546,2588.9,2588.0,2.4995]
[1724069085645,7.72547,2588.9,2588.1,0.2576771]
[1724069085851,3.8628,2588.8,2588.1,0.2576771]
[1724069086178,3.86272,2588.9,2588.1,3.2576771]
[1724069086334,3.8632,2588.6,2588.1,3.0]
[1724069086532,7.72638,2588.6,2588.0,2.4995]
[1724069086732,3.86318,2588.6,2588.0,2.4995]
[1724069087077,3.86284,2588.8,2588.0,2.4995]
[1724069087231,3.86306,2588.7,2588.0,3.04945]
[1724069087432,3.86325,2588.5,2588.1,3.0]
[1724069087680,3.86325,2588.5,2588.0,2.4995]
[1724069088246,3.86348,2588.4,2588.0,2.4995]
[1724069088463,3.86355,2588.3,2587.7,5.4427]
[1724069089430,3.86348,2588.4,2587.7,5.4427]
[1724069089647,3.86324,2588.5,2587.7,5.4427]
[1724069089861,0.12246046,2588.3,2587.7,5.4427]
[1724069090035,3.86345,2588.4,2587.7,5.4427]
[1724069090468,0.12227601,2588.3,2587.7,3.0]
[1724069090670,0.12227601,2588.3,2588.1,2.4659]
[1724069090981,11.15198,2589.4,2588.1,2.4659]
[1724069090982,3.86222,2589.2,2588.2,2.9745]
[1724069091280,3.86222,2589.2,2588.3,42.42467565]
[1724069091281,3.86241,2589.1,2588.3,42.42467565]
[1724069091588,0.11415227,2589.1,2588.3,42.42467565]
[1724069091878,0.11415227,2589.1,2588.4,2.56415582]
[1724069092104,0.11415227,2589.1,2588.5,3.0]
[1724069092377,0.11415227,2589.1,2588.5,4.02401]
[1724069092378,3.86252,2589.0,2588.5,4.02401]
[1724069092534,3.86252,2589.0,2588.5,3.0]
[1724069092734,0.11447015,2588.9,2588.4,5.4869]
[1724069093091,0.11447015,2588.9,2588.4,2.4869]
[1724069093092,3.86292,2588.8,2588.4,2.4869]
[1724069093291,3.86292,2588.8,2588.1,5.3601]
[1724069093443,0.11447015,2588.7,2588.2,0.7025]
[1724069093643,3.97741015,2588.7,2588.2,0.7025]
[1724069093851,3.86314,2588.6,2588.1,2.3601]
[1724069094054,3.86314,2588.6,2588.0,2.3089]
[1724069094376,3.86314,2588.6,2588.0,2.53979]
[1724069094377,0.11445281,2588.5,2588.0,2.53979]
[1724069095105,3.86267,2588.9,2588.0,2.53979]
[1724069095393,0.114291,2588.8,2588.1,3.0]
[1724069095597,0.114291,2588.8,2588.2,0.553979]
[1724069095945,3.86298,2588.7,2588.1,38.0]
[1724069096143,3.86298,2588.7,2588.1,3.0]
[1724069096390,3.86292,2588.8,2588.0,2.3089]
[1724069096593,0.11427366,2588.6,2588.1,0.23089]
[1724069096906,3.86265,2588.9,2588.1,0.23089]
[1724069097061,0.11427366,2588.8,2588.1,3.23089]
[1724069097394,3.86234,2589.1,2588.3,2.4867]
[1724069097550,0.11427366,2588.7,2588.3,5.4867]
[1724069097750,3.86235,2589.1,2588.4,0.3040679]
[1724069097955,3.86235,2589.1,2588.4,3.3040679]
[1724069098262,0.11427366,2589.0,2588.5,0.56563875]
[1724069098853,3.97678366,2589.0,2588.5,0.56563875]
[1724069099053,3.97678366,2589.0,2588.4,3.0]
[1724069099248,3.97678366,2589.0,2588.3,2.4867]
[1724069099249,0.11427366,2589.0,2588.3,2.4867]
[1724069099696,3.97688366,2589.0,2588.3,2.4867]
[1724069100752,0.11427366,2589.0,2588.3,2.4867]
[1724069100960,0.11427366,2589.0,2588.4,0.24867]
[1724069101290,0.11427366,2589.0,2588.4,3.24867]
[1724069102499,3.86212,2589.3,2588.4,3.24867]
[1724069102796,3.86222,2589.2,2588.4,3.24867]
[1724069103118,3.97683466,2589.2,2588.5,35.0]
[1724069103402,3.86235,2589.1,2588.6,3.0]
[1724069103580,3.86272,2588.9,2588.4,3.0]
[1724069103783,3.86286,2588.8,2588.3,2.4867]
[1724069103958,3.86283,2588.8,2588.0,2.2993]
[1724069104155,4.5304102,2588.8,2588.0,2.2993]
[1724069104377,3.97758199,2588.7,2588.0,2.2993]
[1724069104803,0.11463199,2588.7,2588.0,2.2993]
[1724069105008,3.97757199,2588.7,2588.0,2.2993]
[1724069105209,3.97768199,2588.7,2588.0,2.2993]
[1724069105387,3.86316,2588.6,2588.0,2.2993]
[1724069105718,3.86324,2588.5,2587.7,2.4662]
[1724069105916,0.11463199,2588.4,2587.7,2.4662]
[1724069106217,3.86361,2588.3,2587.7,2.4662]
[1724069106514,7.72699,2588.4,2587.7,2.4662]
[1724069106674,3.97817199,2588.3,2587.7,2.4662]
[1724069107422,3.86377,2588.2,2587.7,2.4662]
[1724069108116,0.11463199,2588.1,2587.7,2.4662]
[1724069108321,0.11463199,2588.1,2587.4,2.4551111]
[1724069108322,3.86431,2587.8,2587.4,2.4551111]
[1724069108473,3.86399,2588.0,2587.4,2.4551111]
[1724069108678,0.11463199,2587.9,2587.4,2.4551111]
[1724069108877,3.97876199,2587.9,2587.4,2.4551111]
[1724069109479,3.97876199,2587.9,2587.4,0.1239111]
[1724069109480,3.86453,2587.7,2587.4,0.1239111]
[1724069110022,0.11463199,2587.6,2587.4,0.1239111]
[1724069110907,7.7287,2587.8,2587.4,0.1239111]
[1724069111074,0.11463199,2587.7,2587.4,0.1239111]
[1724069111419,3.86378,2588.2,2587.4,0.1239111]
[1724069111629,0.11463199,2587.6,2587.4,0.1239111]
[1724069111795,3.86324,2588.5,2587.5,2.34968545]
[1724069111980,9.5527,2588.6,2587.6,0.24735965]
[1724069111981,13.41587,2588.6,2587.6,0.24735965]
[1724069112183,13.41587,2588.6,2587.6,3.24735965]
[1724069112391,3.8634,2588.4,2587.6,3.24735965]
[1724069112732,3.86363,2588.3,2587.6,3.24735965]
[1724069112875,3.86391,2588.1,2587.6,3.0]
[1724069113075,3.86406,2588.0,2587.5,2.2724]
[1724069113581,4.250301,2588.1,2587.5,2.2724]
[1724069114124,3.86364,2588.3,2587.5,2.2724]
[1724069114274,3.86369,2588.2,2587.5,2.2724]
[1724069114704,3.86385,2588.1,2587.5,2.2724]
[1724069115625,3.86421,2587.9,2587.4,0.1239111]
[1724069116696,4.250375,2588.0,2587.4,0.1239111]
[1724069116896,3.86364,2588.3,2587.4,0.1239111]
[1724069117137,3.86364,2588.3,2587.5,2.49018679]
[1724069117450,7.72732,2588.3,2587.5,5.4129]
[1724069117646,3.8637,2588.2,2587.5,5.96658111]
[1724069118136,7.72731,2588.3,2587.5,5.96658111]
[1724069118299,7.72731,2588.3,2587.6,0.60904922]
[1724069118499,7.72731,2588.3,2587.6,3.60904922]
[1724069118703,3.8637,2588.2,2587.6,3.60904922]
[1724069119019,3.86364,2588.3,2587.6,3.0]
[1724069119020,3.86385,2588.1,2587.6,3.0]
[1724069119198,3.86385,2588.1,2587.5,5.4129]
[1724069119416,3.86369,2588.2,2587.5,5.96658111]
[1724069120045,0.11384005,2588.1,2587.5,5.96658111]
[1724069121499,3.97775005,2588.1,2587.5,5.96658111]
[1724069121757,3.97775005,2588.1,2587.5,5.4129]
[1724069123348,7.84168005,2588.1,2587.5,5.4129]
[1724069123699,3.97775005,2588.1,2587.5,5.4129]
[1724069124709,7.84172005,2588.1,2587.5,5.4129]
[1724069124908,3.86406,2588.0,2587.5,5.4129]
[1724069125327,0.11379382,2587.9,2587.5,5.4129]
[1724069125919,4.7621102,2587.9,2587.5,3.0]
[1724069126105,3.86443,2587.7,2587.4,0.1239111]
[1724069126602,3.97838382,2587.6,2587.4,0.1239111]
[1724069127010,0.11379382,2587.6,2587.4,0.1239111]
[1724069128123,7.72946,2587.5,2587.4,0.1239111]
[1724069128326,3.86473,2587.5,2587.4,0.1239111]
[1724069128523,0.39782338,2587.6,2587.4,0.1239111]
[1724069128737,4.26241338,2587.6,2587.4,0.1239111]
[1724069129059,0.11379382,2587.5,2587.4,0.1239111]
[1724069129953,3.97852382,2587.5,2587.4,0.1239111]
[1724069130109,4.7628262,2587.5,2587.4,0.1239111]
[1724069130507,0.8980962,2587.5,2587.4,0.1239111]
[1724069130712,0.11379382,2587.5,2587.4,0.1239111]
[1724069131661,3.97852382,2587.5,2587.4,0.1239111]
[1724069131956,3.09231764,2587.5,2587.4,0.1239111]
[1724069132128,6.95704764,2587.5,2587.4,0.1239111]
[1724069132532,0.11379382,2587.5,2587.4,0.1239111]
[1724069132711,13.37671212,2588.2,2587.4,0.1239111]
[1724069132712,15.46223212,2588.4,2587.4,0.1239111]
[1724069132919,3.86413,2588.0,2587.4,3.1239111]
[1724069133309,3.86425,2587.9,2587.4,3.1239111]
[1724069133530,0.11000069,2587.9,2587.4,3.1239111]
[1724069133915,3.86405,2588.0,2587.4,3.1239111]
[1724069134686,0.10955529,2587.9,2587.4,3.1239111]
[1724069135040,0.10955529,2587.9,2587.4,3.67634221]
[1724069135687,0.10955529,2587.9,2587.5,2.3916]
[1724069135834,0.10955529,2587.9,2587.5,5.3916]
[1724069136036,3.86405,2588.0,2587.5,5.3916]
[1724069136231,0.10919095,2587.8,2587.5,5.99839422]
[1724069136464,3.86405,2588.0,2587.5,5.99839422]
[1724069136938,0.10923722,2587.9,2587.5,5.99839422]
[1724069137143,3.86379,2588.2,2587.6,0.61223053]
[1724069137360,3.8635,2588.4,2587.6,3.61223053]
[1724069137641,3.86349,2588.4,2587.7,2.3047]
[1724069137841,0.10923722,2588.3,2587.7,5.3047]
[1724069138122,0.10923722,2588.3,2587.7,6.11615512]
[1724069138379,3.86384,2588.1,2587.7,5.3047]
[1724069138589,0.10923722,2588.3,2587.4,0.1239111]
[1724069138590,3.86421,2587.9,2587.4,2.4530111]
[1724069138879,0.1093182,2587.8,2587.4,2.4530111]
[1724069139454,3.9736182,2587.8,2587.4,2.4530111]
[1724069139975,3.8645,2587.7,2587.4,2.4530111]
[1724069140283,0.10928928,2587.6,2587.4,0.1239111]
[1724069140947,3.86429,2587.8,2587.4,0.1239111]
[1724069141150,0.4250711,2587.7,2587.4,0.1239111]
[1724069141349,0.1092835,2587.6,2587.4,0.1239111]
[1724069141770,3.86429,2587.8,2587.4,0.1239111]
[1724069142176,0.1092835,2587.7,2587.4,0.1239111]
[1724069142387,3.86429,2587.8,2587.4,0.1239111]
[1724069142594,0.1092835,2587.7,2587.4,0.1239111]
[1724069142798,3.86359,2588.3,2587.5,2.275]
[1724069143120,0.10914467,2588.2,2587.6,0.23989111]
[1724069143248,3.97283467,2588.2,2587.6,0.23989111]
[1724069143443,0.10914467,2588.2,2587.6,3.23989111]
[1724069144944,3.97285467,2588.2,2587.6,3.23989111]
[1724069146664,3.97285467,2588.2,2587.7,0.55148911]
[1724069147000,3.97285467,2588.2,2587.6,3.23989111]
[1724069149159,7.83665467,2588.2,2587.6,3.23989111]
[1724069149509,7.83664467,2588.2,2587.6,3.0]
[1724069149694,3.86384,2588.1,2587.5,2.275]
[1724069149997,3.86451,2587.7,2587.4,0.1239111]
[1724069150351,0.1094686,2587.6,2587.4,0.1239111]
[1724069150993,3.8643,2587.8,2587.4,0.1239111]
[1724069151300,4.637249,2587.8,2587.4,0.1239111]
[1724069151506,0.1094686,2587.7,2587.4,0.1239111]
[1724069151789,3.86415,2587.9,2587.4,0.1239111]
[1724069151996,0.1094686,2587.6,2587.4,0.1239111]
[1724069152290,4.71534195,2587.9,2587.4,0.1239111]
[1724069152447,0.1094686,2587.5,2587.4,0.1239111]
[1724069152651,4.71534195,2587.9,2587.4,0.1239111]
[1724069152890,0.1094686,2587.5,2587.4,0.1239111]
[1724069153152,3.86429,2587.8,2587.4,0.1239111]
[1724069153412,0.1094686,2587.5,2587.4,0.1239111]
[1724069153758,4.3358382,2587.8,2587.4,0.1239111]
[1724069153759,8.2002582,2587.8,2587.4,0.1239111]
[1724069153957,0.1094686,2587.5,2587.4,0.1239111]
[1724069154112,8.2002582,2587.8,2587.4,0.1239111]
[1724069154113,4.3358382,2587.8,2587.4,0.1239111]
[1724069154313,0.1094686,2587.5,2587.4,0.1239111]
[1724069154833,3.9741986,2587.5,2587.4,0.1239111]
[1724069155124,8.51333786,2587.5,2587.4,0.1239111]
[1724069155321,7.8389286,2587.5,2587.4,0.1239111]
[1724069156261,11.7036586,2587.5,2587.4,0.1239111]
[1724069160716,7.8389286,2587.5,2587.4,0.1239111]
[1724069163551,0.1094686,2587.5,2587.4,0.1239111]
[1724069163751,3.9741986,2587.5,2587.4,0.1239111]
[1724069164141,0.1094686,2587.5,2587.4,0.1239111]
[1724069164455,3.9741986,2587.5,2587.4,0.1239111]
[1724069164651,8.62280846,2587.5,2587.4,0.1239111]
[1724069164841,7.8389286,2587.5,2587.4,0.1239111]
[1724069165454,0.1094686,2587.5,2587.4,0.1239111]
[1724069165656,0.1094686,2587.5,2587.4,2.4872111]
[1724069165860,3.86456,2587.7,2587.4,2.4872111]
[1724069166164,0.1091389,2587.5,2587.4,2.4872111]
[1724069166823,3.86456,2587.7,2587.4,2.4872111]
[1724069167025,0.1091794,2587.6,2587.4,2.4872111]
[1724069167224,3.86431,2587.8,2587.4,2.4872111]
[1724069167424,0.1091794,2587.7,2587.4,2.4872111]
[1724069167728,2.02641293,2587.9,2587.4,2.73593221]
[1724069167922,0.10918518,2587.6,2587.4,2.73593221]
[1724069168163,3.86439,2587.8,2587.4,2.73593221]
[1724069168505,3.86439,2587.8,2587.4,2.4872111]
[1724069168674,3.97366146,2587.7,2587.4,2.4872111]
[1724069168967,3.86466,2587.6,2587.4,2.4872111]
[1724069169167,3.86473,2587.5,2587.4,0.1239111]
[1724069169392,3.97402509,2587.5,2587.4,0.1239111]
[1724069170571,7.83875509,2587.5,2587.4,0.1239111]
[1724069171236,11.70348509,2587.5,2587.4,0.1239111]
[1724069171442,13.19975681,2587.5,2587.4,0.1239111]
[1724069172412,9.33502681,2587.5,2587.4,0.1239111]
[1724069175284,13.19975681,2587.5,2587.4,0.1239111]
[1724069175481,15.22596161,2587.5,2587.4,0.1239111]
[1724069175682,13.19975681,2587.5,2587.4,0.1239111]
[1724069175867,9.33502681,2587.5,2587.4,0.1239111]
[1724069176282,3.97402509,2587.5,2587.4,0.1239111]
[1724069176669,0.10929509,2587.5,2587.4,0.1239111]
[1724069176875,7.83875509,2587.5,2587.4,0.1239111]
[1724069178295,14.01098509,2587.5,2587.4,0.1239111]
[1724069178528,18.08598509,2587.5,2587.4,0.1239111]
[1724069178695,22.91296888,2587.5,2587.4,0.1239111]
[1724069179194,26.77769888,2587.5,2587.4,0.1239111]
[1724069179597,24.75149408,2587.5,2587.4,0.1239111]
[1724069182511,29.77509413,2587.5,2587.4,0.1239111]
[1724069183287,27.75149408,2587.5,2587.4,0.1239111]
[1724069184702,27.75097911,2587.5,2587.4,0.1239111]
[1724069185140,29.77397168,2587.5,2587.4,0.1239111]
[1724069185643,27.75097911,2587.5,2587.4,0.1239111]
[1724069186508,29.77363305,2587.5,2587.4,0.1239111]
[1724069188911,17.50374911,2587.5,2587.4,0.1239111]
[1724069189108,14.50374911,2587.5,2587.4,0.1239111]
[1724069189437,11.70297012,2587.5,2587.4,0.1239111]
[1724069190545,7.83824012,2587.5,2587.4,0.1239111]
[1724069190767,0.10878012,2587.5,2587.4,2.5668111]
[1724069191088,7.29,2588.0,2587.4,2.5668111]
[1724069191089,3.86453,2587.7,2587.4,2.5668111]
[1724069191240,0.10836118,2587.5,2587.4,2.82349221]
[1724069191397,3.86421,2587.9,2587.4,2.82349221]
[1724069191596,0.10836118,2587.8,2587.6,2.3537]
[1724069191839,3.97267118,2587.8,2587.6,2.3537]
[1724069192350,3.86443,2587.7,2587.6,2.3537]
[1724069192639,3.86431,2587.8,2587.6,2.3537]
[1724069192840,0.10836118,2587.7,2587.6,2.3537]
[1724069193001,7.72869,2587.8,2587.6,2.3537]
[1724069193201,0.10836118,2587.7,2587.6,2.3537]
[1724069193403,3.86431,2587.8,2587.6,2.3537]
[1724069193741,0.10836118,2587.7,2587.6,2.3537]
[1724069194412,3.86443,2587.7,2587.6,2.3537]
[1724069194614,3.97279118,2587.7,2587.6,2.3537]
[1724069196357,0.10836118,2587.7,2587.6,2.62969603]
[1724069196849,0.10836118,2587.7,2587.6,0.27599603]
[1724069196850,3.97279118,2587.7,2587.6,0.27599603]
[1724069196997,3.97279118,2587.7,2587.4,0.1239111]
[1724069197595,3.86461,2587.6,2587.4,0.1239111]
[1724069197799,3.86401,2588.0,2587.4,0.1239111]
[1724069197800,7.72946,2587.5,2587.4,0.1239111]
[1724069198031,8.502406,2587.5,2587.4,0.1239111]
[1724069198214,12.47587334,2587.5,2587.4,0.1239111]
[1724069199262,8.61114334,2587.5,2587.4,0.1239111]
[1724069199483,7.83819734,2587.5,2587.4,0.1239111]
[1724069200150,3.97346734,2587.5,2587.4,0.1239111]
[1724069200356,0.10873734,2587.5,2587.4,2.3966111]
[1724069200664,3.86473,2587.5,2587.4,2.63627221]
[1724069200984,3.97323588,2587.5,2587.4,2.63627221]
[1724069201314,3.97323588,2587.5,2587.4,2.3966111]
[1724069202991,7.83796588,2587.5,2587.4,0.1239111]
[1724069206996,0.10850588,2587.5,2587.4,0.1239111]
[1724069207140,0.10850588,2587.5,2587.4,2.5589111]
[1724069208538,0.10850588,2587.5,2587.4,2.81480221]
[1724069208956,3.86422,2587.9,2587.4,2.81480221]
[1724069209160,0.10886469,2587.5,2587.4,2.81480221]
[1724069209360,3.86421,2587.9,2587.4,2.81480221]
[1724069209556,0.10886469,2587.5,2587.4,2.81480221]
[1724069209760,3.86363,2588.3,2587.5,2.4938]
[1724069209988,2.02397377,2588.7,2587.6,3.0438]
[1724069210223,7.72638,2588.6,2587.7,2.3519]
[1724069210376,7.72638,2588.6,2587.9,2.3519]
[1724069210377,3.86324,2588.5,2587.9,2.3519]
[1724069210716,3.86324,2588.5,2588.0,2.4906]
[1724069210923,3.86317,2588.6,2588.0,2.4906]
[1724069211224,3.86272,2588.9,2588.2,2.4906]
[1724069211374,3.86282,2588.8,2588.2,5.4906]
[1724069211572,3.86282,2588.8,2588.3,0.977066]
[1724069211825,3.86282,2588.8,2588.3,3.0]
[1724069212177,3.86282,2588.8,2588.2,2.4906]
[1724069212474,3.863,2588.7,2588.2,2.4906]
[1724069215019,3.86287,2588.8,2588.2,2.4906]
[1724069215224,3.86287,2588.8,2588.3,0.54906]
[1724069215527,3.86287,2588.8,2588.3,3.54906]
[1724069215710,3.86274,2588.9,2588.3,3.54906]
[1724069215876,7.29,2589.5,2588.3,3.54906]
[1724069215877,3.86253,2589.0,2588.4,2.3706]
[1724069216224,3.86242,2589.1,2588.4,2.725506]
[1724069218526,7.29,2589.5,2588.4,2.725506]
[1724069218527,3.86186,2589.5,2588.5,2.2769]
[1724069218727,3.86215,2589.3,2588.6,2.8269]
[1724069218893,3.86215,2589.3,2588.8,2.2769]
[1724069219418,3.86177,2589.5,2588.8,2.35414841]
[1724069219579,3.86154,2589.7,2588.8,2.2769]
[1724069219774,3.86199,2589.4,2588.9,1.42462565]
[1724069219975,3.86199,2589.4,2588.9,4.42462565]
[1724069220226,3.86199,2589.4,2589.0,0.54906]
[1724069220426,3.86183,2589.5,2589.0,0.54906]
[1724069220591,3.8616,2589.6,2589.1,2.4355]
[1724069220803,3.8616,2589.6,2589.2,0.298456]
[1724069221349,3.86155,2589.7,2589.2,0.298456]
[1724069221350,3.86177,2589.5,2589.2,0.298456]
[1724069221520,3.86177,2589.5,2589.1,2.4355]
[1724069221521,3.86217,2589.3,2589.1,2.4355]
[1724069221878,3.86215,2589.3,2589.1,2.4355]
[1724069222080,7.72429,2589.3,2589.1,2.4355]
[1724069222289,3.86214,2589.3,2589.1,2.4355]
[1724069222517,7.72429,2589.3,2589.1,2.4355]
[1724069222721,3.86257,2589.0,2588.7,2.3372]
[1724069224287,3.86298,2588.7,2588.5,9.705]
[1724069224787,0.11053607,2588.6,2588.5,9.705]
[1724069225237,3.86279,2588.8,2588.5,9.705]
[1724069225405,0.11044938,2588.6,2588.5,9.705]
[1724069225612,3.86279,2588.8,2588.5,12.705]
[1724069225939,3.86279,2588.8,2588.5,5.4649]
[1724069226159,0.11040314,2588.7,2588.5,2.4649]
[1724069226514,3.86261,2589.0,2588.5,2.4649]
[1724069226732,0.11037424,2588.6,2588.5,2.4649]
[1724069226928,3.86261,2589.0,2588.5,2.4649]
[1724069227133,0.11037424,2588.6,2588.5,2.4649]
[1724069227318,3.86261,2589.0,2588.5,2.4649]
[1724069227851,3.86261,2589.0,2588.5,2.71139]
[1724069228020,0.11037424,2588.9,2588.5,2.71139]
[1724069231854,3.97314424,2588.9,2588.5,2.4649]
[1724069232211,3.86281,2588.8,2588.5,2.4649]
[1724069232626,3.96983764,2588.7,2588.5,2.4649]
[1724069232830,3.86316,2588.6,2588.2,2.2774]
[1724069233052,3.86341,2588.4,2588.2,2.2774]
[1724069233431,6.1638,2589.2,2588.1,3.0]
[1724069233432,0.10683026,2588.3,2588.1,3.0]
[1724069233629,3.86367,2588.3,2588.1,3.0]
[1724069233868,0.10683026,2588.2,2588.0,7.2401]
[1724069234021,3.86378,2588.2,2588.0,7.2401]
[1724069234423,0.10683026,2588.1,2588.0,7.2401]
[1724069234642,0.10683026,2588.1,2588.0,10.2401]
[1724069235343,0.10683026,2588.1,2588.0,12.6209]
[1724069235680,3.86231,2589.2,2588.1,2.3808]
[1724069235980,0.10661003,2589.1,2588.4,2.3808]
[1724069236141,0.10661003,2589.1,2588.5,0.78808]
[1724069236834,0.10661003,2589.1,2588.6,2.3553]
[1724069237033,3.86208,2589.3,2588.6,5.3553]
[1724069237386,0.10661003,2589.2,2588.7,0.614338]
[1724069237542,0.10661003,2589.2,2588.7,3.614338]
[1724069238174,0.10661003,2589.2,2588.8,2.3519]
[1724069238357,0.10661003,2589.2,2588.9,0.57126765]
[1724069238675,0.10661003,2589.1,2588.9,3.57126765]
[1724069238976,3.86202,2589.4,2588.9,3.57126765]
[1724069239176,0.10661003,2589.0,2588.9,3.57126765]
[1724069239628,3.86205,2589.3,2588.9,3.57126765]
[1724069239834,0.10661003,2589.2,2588.9,3.0]
[1724069240031,7.72418,2589.3,2588.8,2.3519]
[1724069240235,0.10661003,2589.2,2588.9,0.53519]
[1724069240476,3.8618,2589.5,2588.9,3.0]
[1724069240779,3.86244,2589.1,2588.7,3.0]
[1724069240981,3.86244,2589.1,2588.5,0.55]
[1724069240982,3.86244,2589.1,2588.6,2.4449]
[1724069241276,3.96937703,2589.0,2588.6,5.4449]
[1724069241783,3.86272,2588.9,2588.6,2.4449]
[1724069242282,0.10680703,2588.8,2588.6,2.4449]
[1724069242469,3.86227,2589.2,2588.7,0.54449]
[1724069242780,0.10680703,2589.1,2588.8,2.2846]
[1724069243077,3.86195,2589.4,2588.9,0.282909]
[1724069243234,0.10343853,2589.3,2589.2,6.4288]
[1724069243436,3.86082,2590.2,2589.2,4.581]
[1724069243634,7.29,2590.5,2589.3,5.9478]
[1724069243635,3.86114,2590.0,2589.3,5.9478]
[1724069243835,3.96476564,2589.9,2589.3,5.9478]
[1724069244049,0.10352564,2589.9,2589.3,5.9478]
[1724069244839,3.96475564,2589.9,2589.3,5.9478]
[1724069245584,0.10352564,2589.9,2589.3,5.9478]
[1724069246453,0.10352564,2589.9,2589.4,0.07722901]
[1724069246653,0.10352564,2589.9,2589.4,2.3743]
[1724069246855,3.86089,2590.1,2589.4,2.3743]
[1724069247162,0.10392041,2589.8,2589.4,2.3743]
[1724069247365,3.86081,2590.2,2589.5,0.59243]
[1724069247561,0.10392041,2589.7,2589.5,3.59243]
[1724069247777,3.86081,2590.2,2589.5,3.59243]
[1724069247952,3.86081,2590.2,2589.6,0.596673]
[1724069248152,7.72163,2590.2,2589.7,2.4283]